fUSD/lending_fUSD_20250208
["ID","MTS","AMOUNT","RATE_DAILY","PERIOD"]
[352237538,1739013089010,-1011.69,0.00011682,2]
[352237539,1739013089019,-500.0,0.00011682,2]
[352237540,1739013089027,-500.0,0.00011682,2]
[352237541,1739013089037,-874.09,0.00011682,2]
[352237542,1739013089047,-504.33538854,0.00011682,2]
[352237543,1739013089056,-726.83,0.00011682,2]
[352237544,1739013089066,-500.0,0.00011682,2]
[352237545,1739013089076,-500.0,0.00011682,2]
[352237546,1739013089085,-500.0,0.00011682,2]
[352237547,1739013089095,-500.0,0.00011682,2]
[352237548,1739013089105,-500.0,0.00011682,2]
[352237549,1739013089114,-1536.23,0.00011682,2]
[352237550,1739013089124,-500.0,0.00011682,2]
[352237551,1739013089132,-500.0,0.00011682,2]
[352237552,1739013089142,-773.18,0.00011682,2]
[352237553,1739013089151,-500.0,0.00011682,2]
[352237554,1739013089162,-611.63,0.00011682,2]
[352237555,1739013089171,-532.87,0.00011682,2]
[352237556,1739013089181,-500.0,0.00011682,2]
[352237557,1739013089190,-708.91,0.00011682,2]
[352237558,1739013089200,-500.0,0.00011682,2]
[352237559,1739013089210,-2071.14,0.00011682,2]
[352237560,1739013089219,-500.0,0.00011682,2]
[352237561,1739013089229,-500.0,0.00011682,2]
[352237562,1739013089238,-818.79,0.00011682,2]
[352237563,1739013089247,-500.0,0.00011682,2]
[352237564,1739013089257,-981.65,0.00011682,2]
[352237565,1739013089267,-613.0874393,0.00011682,2]
[352237566,1739013089276,-500.0,0.00011682,2]
[352237567,1739013089286,-500.0,0.00011682,2]
[352237568,1739013089296,-191.03019339,0.00011682,2]
[352237569,1739013089306,-500.0,0.00011682,2]
[352237570,1739013089315,-947.55,0.00011682,2]
[352237571,1739013089324,-500.0,0.00011682,2]
[352237572,1739013089334,-2250.99,0.00011682,2]
[352237573,1739013089343,-500.0,0.00011682,2]
[352237574,1739013089353,-500.0,0.00011682,2]
[352237575,1739013089365,-500.0,0.00011682,2]
[352237576,1739013089374,-500.0,0.00011682,2]
[352237577,1739013089384,-500.0,0.00011682,2]
[352237578,1739013089393,-500.0,0.00011682,2]
[352237579,1739013089405,-500.0,0.00011682,2]
[352237580,1739013089414,-500.0,0.00011682,2]
[352237581,1739013089423,-500.0,0.00011682,2]
[352237582,1739013089433,-500.0,0.00011682,2]
[352237583,1739013089443,-500.0,0.00011682,2]
[352237584,1739013089453,-500.0,0.00011682,2]
[352237585,1739013089462,-500.0,0.00011682,2]
[352237586,1739013089472,-500.0,0.00011682,2]
[352237587,1739013089481,-559.06,0.00011682,2]
[352237588,1739013089491,-514.45,0.00011682,2]
[352237589,1739013089501,-500.0,0.00011682,2]
[352237590,1739013089511,-500.0,0.00011682,2]
[352237591,1739013089520,-854.4,0.00011682,2]
[352237592,1739013089530,-500.0,0.00011682,2]
[352237593,1739013089540,-500.0,0.00011682,2]
[352237594,1739013089550,-500.0,0.00011682,2]
[352237595,1739013089559,-513.19,0.00011682,2]
[352237596,1739013089567,-1032.34,0.00011682,2]
[352237597,1739013089576,-500.0,0.00011682,2]
[352237598,1739013089586,-500.0,0.00011682,2]
[352237599,1739013089595,-500.0,0.00011682,2]
[352237600,1739013089604,-283.46,0.00011682,2]
[352237601,1739013089614,-500.0,0.00011682,2]
[352237602,1739013089623,-500.0,0.00011682,2]
[352237603,1739013089632,-500.0,0.00011682,2]
[352237604,1739013089641,-500.0,0.00011682,2]
[352237605,1739013089650,-1046.28,0.00011682,2]
[352237606,1739013089659,-2383.11,0.00011682,2]
[352237607,1739013089668,-626.31,0.00011682,2]
[352237608,1739013089678,-164.20090988,0.00011682,2]
[352237609,1739013089687,-500.0,0.00011682,2]
[352237610,1739013089696,-614.14,0.00011682,2]
[352237611,1739013089705,-966.17,0.00011682,2]
[352237612,1739013089715,-500.0,0.00011682,2]
[352237613,1739013089724,-1038.87,0.00011682,2]
[352237614,1739013089733,-500.0,0.00011682,2]
[352237615,1739013089742,-500.0,0.00011682,2]
[352237616,1739013089751,-1106.05,0.00011682,2]
[352237617,1739013089761,-500.0,0.00011682,2]
[352237618,1739013089770,-606.82535636,0.00011682,2]
[352237619,1739013089780,-503.90949884,0.00011682,2]
[352237620,1739013089789,-2015.73,0.00011682,2]
[352237621,1739013089798,-500.0,0.00011682,2]
[352237622,1739013089807,-504.77049041,0.00011682,2]
[352237623,1739013089816,-500.0,0.00011682,2]
[352237624,1739013089825,-500.0,0.00011682,2]
[352237625,1739013089834,-1931.33,0.00011682,2]
[352237626,1739013089843,-500.0,0.00011682,2]
[352237627,1739013089852,-500.0,0.00011682,2]
[352237628,1739013089861,-500.0,0.00011682,2]
[352237629,1739013089870,-500.0,0.00011682,2]
[352237630,1739013089879,-559.49,0.00011682,2]
[352237631,1739013089888,-500.0,0.00011682,2]
[352237632,1739013089898,-500.0,0.00011682,2]
[352237633,1739013089907,-500.0,0.00011682,2]
[352237634,1739013089916,-1077.31,0.00011682,2]
[352237635,1739013089925,-500.0,0.00011682,2]
[352237636,1739013089934,-500.0,0.00011682,2]
[352237637,1739013089943,-500.0,0.00011682,2]
[352237638,1739013089952,-932.69,0.00011682,2]
[352237639,1739013089961,-2072.47,0.00011682,2]
[352237640,1739013089970,-2541.69,0.00011682,2]
[352237641,1739013089979,-501.92,0.00011682,2]
[352237642,1739013089988,-500.0,0.00011682,2]
[352237643,1739013089997,-500.0,0.00011682,2]
[352237644,1739013090006,-721.58,0.00011682,2]
[352237645,1739013090015,-761.18,0.00011682,2]
[352237646,1739013090025,-500.0,0.00011682,2]
[352237647,1739013090034,-500.0,0.00011682,2]
[352237648,1739013090043,-500.0,0.00011682,2]
[352237649,1739013090052,-1724.83,0.00011682,2]
[352237650,1739013090061,-500.0,0.00011682,2]
[352237651,1739013090070,-2030.46,0.00011682,2]
[352237652,1739013090079,-500.0,0.00011682,2]
[352237653,1739013090088,-902.21,0.00011682,2]
[352237654,1739013090096,-310.75915868,0.00011682,2]
[352237655,1739013090105,-500.0,0.00011682,2]
[352237656,1739013090115,-2002.7,0.00011682,2]
[352237657,1739013090124,-2636.15,0.00011682,2]
[352237658,1739013090133,-479.88162772,0.00011682,2]
[352237659,1739013090142,-500.0,0.00011682,2]
[352237660,1739013090151,-705.09,0.00011682,2]
[352237661,1739013090160,-500.0,0.00011682,2]
[352237662,1739013090169,-500.0,0.00011682,2]
[352237663,1739013090178,-2090.85,0.00011682,2]
[352237664,1739013090187,-1600.49,0.00011682,2]
[352237665,1739013090196,-1065.95,0.00011682,2]
[352237666,1739013090205,-2402.98,0.00011682,2]
[352237667,1739013090214,-2859.61,0.00011682,2]
[352237668,1739013090224,-504.90247757,0.00011682,2]
[352237669,1739013090234,-500.0,0.00011682,2]
[352237670,1739013090243,-500.0,0.00011682,2]
[352237671,1739013090252,-500.0,0.00011682,2]
[352237672,1739013090262,-500.0,0.00011682,2]
[352237673,1739013090271,-2754.41,0.00011682,2]
[352237674,1739013090280,-879.4,0.00011682,2]
[352237675,1739013090289,-2692.97,0.00011682,2]
[352237676,1739013090299,-3004.1,0.00011682,2]
[352237677,1739013090308,-5148.76,0.00011682,2]
[352237678,1739013090317,-500.0,0.00011682,2]
[352237679,1739013090328,-1559.38,0.00011682,2]
[352237680,1739013090339,-500.0,0.00011682,2]
[352237681,1739013090349,-500.0,0.00011682,2]
[352237682,1739013090362,-500.0,0.00011682,2]
[352237683,1739013090374,-2843.08,0.00011682,2]
[352237684,1739013090385,-1375.24,0.00011682,2]
[352237685,1739013090395,-2268.82,0.00011682,2]
[352237686,1739013090405,-5022.25,0.00011682,2]
[352237687,1739013090414,-500.0,0.00011682,2]
[352237688,1739013090423,-711.21,0.00011682,2]
[352237689,1739013090433,-500.0,0.00011682,2]
[352237690,1739013090442,-1670.67,0.00011682,2]
[352237691,1739013090452,-500.0,0.00011682,2]
[352237692,1739013090461,-15081.68,0.00011682,2]
[352237693,1739013090470,-1399.36,0.00011682,2]
[352237694,1739013090480,-1387.07,0.00011682,2]
[352237695,1739013090489,-500.0,0.00011682,2]
[352237696,1739013090499,-6334.51,0.00011682,2]
[352237697,1739013090508,-567.59,0.00011682,2]
[352237698,1739013090518,-500.0,0.00011682,2]
[352237699,1739013090527,-545.26,0.00011682,2]
[352237700,1739013090536,-500.0,0.00011682,2]
[352237701,1739013090546,-2225.81,0.00011682,2]
[352237702,1739013090555,-3509.06,0.00011682,2]
[352237703,1739013090564,-2285.19,0.00011682,2]
[352237704,1739013090573,-5176.3,0.00011682,2]
[352237705,1739013090582,-500.0,0.00011682,2]
[352237706,1739013090591,-184.57200651,0.00011682,2]
[352237707,1739013090600,-679.18,0.00011682,2]
[352237708,1739013090610,-500.0,0.00011682,2]
[352237709,1739013090619,-2222.63,0.00011682,2]
[352237710,1739013090628,-500.0,0.00011682,2]
[352237711,1739013090637,-1424.54,0.00011682,2]
[352237712,1739013090646,-1080.31,0.00011682,2]
[352237713,1739013090655,-500.0,0.00011682,2]
[352237714,1739013090664,-500.0,0.00011682,2]
[352237715,1739013090675,-3915.69,0.00011682,2]
[352237716,1739013090683,-1682.01,0.00011682,2]
[352237717,1739013090694,-500.0,0.00011682,2]
[352237718,1739013090703,-2047.9,0.00011682,2]
[352237719,1739013090712,-1485.93,0.00011682,2]
[352237720,1739013090721,-6299.13,0.00011682,2]
[352237721,1739013090731,-500.0,0.00011682,2]
[352237722,1739013090741,-3481.83,0.00011682,2]
[352237723,1739013090751,-500.0,0.00011682,2]
[352237724,1739013090761,-4781.03,0.00011682,2]
[352237725,1739013090772,-862.73,0.00011682,2]
[352237726,1739013090783,-500.0,0.00011682,2]
[352237727,1739013090802,-883.74,0.00011682,2]
[352237728,1739013090812,-875.14,0.00011682,2]
[352237729,1739013090822,-743.76,0.00011682,2]
[352237730,1739013090834,-769.04,0.00011682,2]
[352237731,1739013090843,-500.0,0.00011682,2]
[352237732,1739013090854,-500.0,0.00011682,2]
[352237733,1739013090865,-1609.57,0.00011682,2]
[352237734,1739013090875,-3900.57,0.00011682,2]
[352237735,1739013090884,-2579.73,0.00011682,2]
[352237736,1739013090893,-3578.24,0.00011682,2]
[352237737,1739013090903,-500.0,0.00011682,2]
[352237738,1739013090915,-2832.35,0.00011682,2]
[352237739,1739013090926,-500.0,0.00011682,2]
[352237740,1739013090935,-500.0,0.00011682,2]
[352237741,1739013090945,-3996.35,0.00011682,2]
[352237742,1739013090955,-813.25,0.00011682,2]
[352237743,1739013090966,-6617.64,0.00011682,2]
[352237744,1739013090976,-4921.37,0.00011682,2]
[352237745,1739013090986,-701.82,0.00011682,2]
[352237746,1739013090995,-2017.92,0.00011682,2]
[352237747,1739013091003,-755.0,0.00011682,2]
[352237748,1739013091013,-974.03,0.00011682,2]
[352237749,1739013091022,-1908.71,0.00011682,2]
[352237750,1739013091031,-500.0,0.00011682,2]
[352237751,1739013091040,-2729.51,0.00011682,2]
[352237752,1739013091049,-500.0,0.00011682,2]
[352237753,1739013091058,-642.67,0.00011682,2]
[352237754,1739013091067,-2356.49,0.00011682,2]
[352237755,1739013091077,-4684.81,0.00011682,2]
[352237756,1739013091086,-948.63,0.00011682,2]
[352237757,1739013091095,-3928.31,0.00011682,2]
[352237758,1739013091267,-500.0,0.00011682,2]
[352237759,1739013091277,-1496.66,0.00011682,2]
[352237760,1739013091286,-500.0,0.00011682,2]
[352237761,1739013091295,-500.0,0.00011682,2]
[352237762,1739013091304,-1961.59,0.00011682,2]
[352237763,1739013091314,-248.47650238,0.00011682,2]
[352237764,1739013091323,-500.0,0.00011683,2]
[352237765,1739013091332,-4538.82,0.00011683,2]
[352237766,1739013091341,-536.6175742,0.00011683,2]
[352237767,1739013091351,-313.59810432,0.00011684,2]
[352237768,1739013091363,-500.0,0.00011684,2]
[352237769,1739013091372,-633.17,0.00011684,2]
[352237770,1739013091381,-500.0,0.00011684,2]
[352237771,1739013091391,-500.0,0.00011684,2]
[352237772,1739013091401,-654.42,0.00011684,2]
[352237773,1739013091410,-500.0,0.00011684,2]
[352237774,1739013091419,-500.0,0.00011684,2]
[352237775,1739013091429,-500.0,0.00011684,2]
[352237776,1739013091438,-914.6,0.00011684,2]
[352237777,1739013091447,-500.0,0.00011684,2]
[352237778,1739013091456,-500.0,0.00011684,2]
[352237779,1739013091465,-500.0,0.00011684,2]
[352237780,1739013091475,-922.56,0.00011684,2]
[352237781,1739013091484,-500.0,0.00011684,2]
[352237782,1739013091493,-500.0,0.00011684,2]
[352237783,1739013091502,-500.0,0.00011684,2]
[352237784,1739013091511,-500.0,0.00011684,2]
[352237785,1739013091521,-500.0,0.00011684,2]
[352237786,1739013091530,-500.0,0.00011684,2]
[352237787,1739013091540,-503.1323025,0.00011684,2]
[352237788,1739013091549,-637.97,0.00011684,2]
[352237789,1739013091558,-500.0,0.00011684,2]
[352237790,1739013091567,-500.0,0.00011684,2]
[352237791,1739013091576,-500.0,0.00011684,2]
[352237792,1739013091585,-500.0,0.00011684,2]
[352237793,1739013091594,-500.0,0.00011684,2]
[352237794,1739013091603,-500.0,0.00011684,2]
[352237795,1739013091612,-500.0,0.00011684,2]
[352237796,1739013091622,-764.68,0.00011684,2]
[352237797,1739013091631,-500.0,0.00011684,2]
[352237798,1739013091640,-500.0,0.00011684,2]
[352237799,1739013091649,-500.0,0.00011684,2]
[352237800,1739013091658,-634.37,0.00011684,2]
[352237801,1739013091667,-598.43,0.00011684,2]
[352237802,1739013091676,-500.0,0.00011684,2]
[352237803,1739013091685,-500.0,0.00011684,2]
[352237804,1739013091694,-500.0,0.00011684,2]
[352237805,1739013091703,-500.0,0.00011684,2]
[352237806,1739013091712,-500.0,0.00011684,2]
[352237807,1739013091721,-500.0,0.00011684,2]
[352237808,1739013091730,-500.0,0.00011684,2]
[352237809,1739013091739,-882.42,0.00011684,2]
[352237810,1739013091748,-500.0,0.00011684,2]
[352237811,1739013091758,-500.0,0.00011684,2]
[352237812,1739013091768,-500.0,0.00011684,2]
[352237813,1739013091778,-783.22,0.00011684,2]
[352237814,1739013091788,-503.1,0.00011684,2]
[352237815,1739013091796,-500.0,0.00011684,2]
[352237816,1739013091805,-500.0,0.00011684,2]
[352237817,1739013091814,-500.0,0.00011684,2]
[352237818,1739013091825,-500.0,0.00011684,2]
[352237819,1739013091836,-500.0,0.00011684,2]
[352237820,1739013091846,-500.0,0.00011684,2]
[352237821,1739013091855,-895.58,0.00011684,2]
[352237822,1739013091865,-500.0,0.00011684,2]
[352237823,1739013091874,-260.07042158,0.00011684,2]
[352237824,1739013091882,-642.49845043,0.00011684,2]
[352237825,1739013091891,-500.0,0.00011684,2]
[352237826,1739013091901,-500.0,0.00011684,2]
[352237827,1739013091910,-500.0,0.00011684,2]
[352237828,1739013091920,-500.0,0.00011684,2]
[352237829,1739013091929,-898.09,0.00011684,2]
[352237830,1739013091938,-500.0,0.00011684,2]
[352237831,1739013091947,-600.0,0.00011684,2]
[352237832,1739013091957,-500.0,0.00011684,2]
[352237833,1739013091967,-500.0,0.00011684,2]
[352237834,1739013091977,-500.0,0.00011684,2]
[352237835,1739013091986,-500.0,0.00011684,2]
[352237836,1739013091995,-500.0,0.00011684,2]
[352237837,1739013092004,-500.0,0.00011684,2]
[352237838,1739013092013,-500.0,0.00011684,2]
[352237839,1739013092022,-500.0,0.00011684,2]
[352237840,1739013092031,-500.0,0.00011684,2]
[352237841,1739013092041,-500.0,0.00011684,2]
[352237842,1739013092050,-500.0,0.00011684,2]
[352237843,1739013092059,-500.0,0.00011684,2]
[352237844,1739013092067,-500.0,0.00011684,2]
[352237845,1739013092076,-503.79,0.00011684,2]
[352237846,1739013092085,-500.0,0.00011684,2]
[352237847,1739013092094,-500.0,0.00011684,2]
[352237848,1739013092104,-500.0,0.00011684,2]
[352237849,1739013092113,-500.0,0.00011684,2]
[352237850,1739013092124,-500.0,0.00011684,2]
[352237851,1739013092133,-500.0,0.00011684,2]
[352237852,1739013092142,-500.0,0.00011684,2]
[352237853,1739013092151,-500.0,0.00011684,2]
[352237854,1739013092160,-500.0,0.00011684,2]
[352237855,1739013092169,-500.0,0.00011684,2]
[352237856,1739013092178,-651.32,0.00011684,2]
[352237857,1739013092188,-711.88,0.00011684,2]
[352237858,1739013092197,-526.52,0.00011684,2]
[352237859,1739013092206,-500.0,0.00011684,2]
[352237860,1739013092215,-500.0,0.00011684,2]
[352237861,1739013092225,-946.77,0.00011684,2]
[352237862,1739013092234,-1188.28,0.00011684,2]
[352237863,1739013092243,-500.0,0.00011684,2]
[352237864,1739013092253,-500.0,0.00011684,2]
[352237865,1739013092262,-891.2,0.00011684,2]
[352237866,1739013092272,-288.95228301,0.00011684,2]
[352237867,1739013092281,-500.0,0.00011684,2]
[352237868,1739013092295,-500.0,0.00011684,2]
[352237869,1739013092306,-500.0,0.00011684,2]
[352237870,1739013092315,-500.0,0.00011684,2]
[352237871,1739013092324,-500.0,0.00011684,2]
[352237872,1739013092333,-1073.14,0.00011684,2]
[352237873,1739013092343,-500.0,0.00011684,2]
[352237874,1739013092353,-500.0,0.00011684,2]
[352237875,1739013092365,-500.0,0.00011684,2]
[352237876,1739013092375,-621.38,0.00011684,2]
[352237877,1739013092385,-500.0,0.00011684,2]
[352237878,1739013092395,-500.0,0.00011684,2]
[352237879,1739013092406,-503.05648723,0.00011684,2]
[352237880,1739013092415,-602.2,0.00011684,2]
[352237881,1739013092425,-500.0,0.00011684,2]
[352237882,1739013092435,-502.46,0.00011684,2]
[352237883,1739013092444,-1923.99,0.00011684,2]
[352237884,1739013092453,-500.0,0.00011684,2]
[352237885,1739013092462,-500.0,0.00011684,2]
[352237886,1739013092471,-1042.08,0.00011684,2]
[352237887,1739013092480,-500.0,0.00011684,2]
[352237888,1739013092489,-281.22712736,0.00011684,2]
[352237889,1739013092498,-753.74,0.00011684,2]
[352237890,1739013092507,-721.0,0.00011684,2]
[352237891,1739013092516,-604.54,0.00011684,2]
[352237892,1739013092525,-603.14,0.00011684,2]
[352237893,1739013092537,-860.81,0.00011684,2]
[352237894,1739013092546,-890.4,0.00011684,2]
[352237895,1739013092555,-931.55,0.00011684,2]
[352237896,1739013092564,-1239.47,0.00011684,2]
[352237897,1739013092573,-2019.59,0.00011684,2]
[352237898,1739013092582,-755.49,0.00011684,2]
[352237899,1739013092591,-500.0,0.00011684,2]
[352237900,1739013092600,-837.9,0.00011684,2]
[352237901,1739013092609,-500.0,0.00011684,2]
[352237902,1739013092620,-500.0,0.00011684,2]
[352237903,1739013092629,-505.37024694,0.00011684,2]
[352237904,1739013092638,-572.48,0.00011684,2]
[352237905,1739013092647,-500.0,0.00011684,2]
[352237906,1739013092656,-1033.35,0.00011684,2]
[352237907,1739013092664,-500.0,0.00011684,2]
[352237908,1739013092673,-500.0,0.00011684,2]
[352237909,1739013092682,-500.0,0.00011684,2]
[352237910,1739013092691,-2008.9,0.00011684,2]
[352237911,1739013092699,-500.0,0.00011684,2]
[352237912,1739013092708,-500.0,0.00011684,2]
[352237913,1739013092717,-500.0,0.00011684,2]
[352237914,1739013092727,-696.95,0.00011684,2]
[352237915,1739013092736,-723.92,0.00011684,2]
[352237916,1739013092745,-500.0,0.00011684,2]
[352237917,1739013092753,-629.81799568,0.00011684,2]
[352237918,1739013092764,-504.96,0.00011684,2]
[352237919,1739013092774,-2033.67,0.00011684,2]
[352237920,1739013092783,-500.0,0.00011684,2]
[352237921,1739013092792,-2296.52,0.00011684,2]
[352237922,1739013092801,-500.0,0.00011684,2]
[352237923,1739013092811,-500.0,0.00011684,2]
[352237924,1739013092821,-1085.81,0.00011684,2]
[352237925,1739013092830,-401.59607251,0.00011684,2]
[352237926,1739013092840,-500.0,0.00011684,2]
[352237927,1739013092850,-284.8083929,0.00011684,2]
[352237928,1739013092862,-929.17,0.00011684,2]
[352237929,1739013092874,-500.0,0.00011684,2]
[352237930,1739013092883,-727.02,0.00011684,2]
[352237931,1739013092893,-991.68,0.00011684,2]
[352237932,1739013092903,-500.0,0.00011684,2]
[352237933,1739013092913,-500.0,0.00011684,2]
[352237934,1739013092922,-500.0,0.00011684,2]
[352237935,1739013092931,-500.0,0.00011684,2]
[352237936,1739013092941,-500.56,0.00011684,2]
[352237937,1739013092951,-775.33,0.00011684,2]
[352237938,1739013092961,-500.0,0.00011684,2]
[352237939,1739013092971,-500.0,0.00011684,2]
[352237940,1739013092980,-746.97,0.00011684,2]
[352237941,1739013092989,-1543.04,0.00011684,2]
[352237942,1739013092998,-500.0,0.00011684,2]
[352237943,1739013093007,-500.0,0.00011684,2]
[352237944,1739013093016,-987.5,0.00011684,2]
[352237945,1739013093025,-500.0,0.00011684,2]
[352237946,1739013093036,-512.18675142,0.00011684,2]
[352237947,1739013093046,-500.0,0.00011684,2]
[352237948,1739013093055,-500.0,0.00011684,2]
[352237949,1739013093064,-2244.47,0.00011684,2]
[352237950,1739013093074,-500.0,0.00011684,2]
[352237951,1739013093083,-850.11,0.00011684,2]
[352237952,1739013093092,-500.0,0.00011684,2]
[352237953,1739013093102,-738.4,0.00011684,2]
[352237954,1739013093111,-500.0,0.00011684,2]
[352237955,1739013093120,-2170.82,0.00011684,2]
[352237956,1739013093130,-883.23,0.00011684,2]
[352237957,1739013093140,-500.0,0.00011684,2]
[352237958,1739013093149,-500.0,0.00011684,2]
[352237959,1739013093159,-500.0,0.00011684,2]
[352237960,1739013093168,-500.0,0.00011684,2]
[352237961,1739013093177,-1022.79,0.00011684,2]
[352237962,1739013093187,-500.0,0.00011684,2]
[352237963,1739013093197,-504.28510289,0.00011684,2]
[352237964,1739013093206,-500.0,0.00011684,2]
[352237965,1739013093215,-500.0,0.00011684,2]
[352237966,1739013093225,-1744.67,0.00011684,2]
[352237967,1739013093234,-500.0,0.00011684,2]
[352237968,1739013093243,-815.19,0.00011684,2]
[352237969,1739013093252,-503.52,0.00011684,2]
[352237970,1739013093262,-721.28,0.00011684,2]
[352237971,1739013093271,-500.0,0.00011684,2]
[352237972,1739013093281,-500.0,0.00011684,2]
[352237973,1739013093292,-500.0,0.00011684,2]
[352237974,1739013093301,-500.0,0.00011684,2]
[352237975,1739013093311,-833.37,0.00011684,2]
[352237976,1739013093320,-500.0,0.00011684,2]
[352237977,1739013093330,-869.88,0.00011684,2]
[352237978,1739013093339,-500.0,0.00011684,2]
[352237979,1739013093350,-500.0,0.00011684,2]
[352237980,1739013093364,-500.0,0.00011684,2]
[352237981,1739013093375,-412.98535426,0.00011684,2]
[352237982,1739013093385,-1093.73,0.00011684,2]
[352237983,1739013093395,-500.0,0.00011684,2]
[352237984,1739013093404,-500.0,0.00011684,2]
[352237985,1739013093415,-501.84404982,0.00011684,2]
[352237986,1739013093424,-665.78,0.00011684,2]
[352237987,1739013093434,-1222.11,0.00011684,2]
[352237988,1739013093444,-500.0,0.00011684,2]
[352237989,1739013093455,-500.0,0.00011684,2]
[352237990,1739013093465,-500.0,0.00011684,2]
[352237991,1739013093475,-508.71,0.00011684,2]
[352237992,1739013093485,-500.0,0.00011684,2]
[352237993,1739013093495,-500.0,0.00011684,2]
[352237994,1739013093504,-557.94,0.00011684,2]
[352237995,1739013093515,-500.0,0.00011684,2]
[352237996,1739013093524,-500.0,0.00011684,2]
[352237997,1739013093535,-848.49,0.00011699,2]
[352237998,1739013093545,-1128.21,0.00011699,2]
[352237999,1739013093555,-126068.10872792,0.000117,2]
[352238000,1739013093566,-175.6723907,0.00011725,2]
[352238001,1739013093576,-797.14,0.00011757,2]
[352238002,1739013093586,-1731.03,0.00011757,2]
[352238003,1739013093598,-500.0,0.00011757,2]
[352238004,1739013093609,-668.35,0.00011757,2]
[352238005,1739013093619,-2004.66,0.00011757,2]
[352238006,1739013093629,-1077.05,0.00011757,2]
[352238007,1739013093639,-2089.48,0.00011757,2]
[352238008,1739013093648,-500.0,0.00011757,2]
[352238009,1739013093658,-1253.82,0.00011757,2]
[352238010,1739013093669,-1374.02,0.00011757,2]
[352238011,1739013093679,-2869.72,0.00011757,2]
[352238012,1739013093848,-500.0,0.00011757,2]
[352238013,1739013093858,-1294.44,0.00011757,2]
[352238014,1739013093868,-983.53,0.00011757,2]
[352238015,1739013093879,-933.79,0.00011757,2]
[352238016,1739013093889,-1322.64,0.00011757,2]
[352238017,1739013093900,-900.11,0.00011757,2]
[352238018,1739013093910,-795.17,0.00011757,2]
[352238019,1739013093920,-956.97,0.00011757,2]
[352238020,1739013093930,-1034.64,0.00011757,2]
[352238021,1739013093939,-2154.87,0.00011757,2]
[352238022,1739013093949,-909.52,0.00011757,2]
[352238023,1739013093959,-814.41,0.00011757,2]
[352238024,1739013093969,-853.96,0.00011757,2]
[352238025,1739013093978,-1757.52,0.00011757,2]
[352238026,1739013093988,-1223.58,0.00011757,2]
[352238027,1739013093997,-1771.87,0.00011757,2]
[352238028,1739013094006,-1197.12,0.00011757,2]
[352238029,1739013094016,-500.0,0.00011757,2]
[352238030,1739013094025,-768.54,0.00011757,2]
[352238031,1739013094035,-1395.95,0.00011757,2]
[352238032,1739013094045,-974.36,0.00011757,2]
[352238033,1739013094056,-500.0,0.00011757,2]
[352238034,1739013094065,-1653.78,0.00011757,2]
[352238035,1739013094074,-500.0,0.00011757,2]
[352238036,1739013094084,-1136.85,0.00011757,2]
[352238037,1739013094094,-547.7,0.00011757,2]